[Event "Rodostosah GM 2019"]
[Site "Tekirdag"]
[Date "2019.02.13"]
[Round "5.4"]
[White "Can, Isik"]
[Black "Lajthajm, Borko"]
[Result "1/2-1/2"]
[ECO "C65"]
[WhiteElo "2382"]
[BlackElo "2431"]
[Annotator "ChessBase"]
[PlyCount "140"]
[EventDate "2019.02.08"]
[EventType "schev"]
[EventCountry "TUR"]
[SourceTitle "playchess.com"]
[Source "ChessBase"]
[SourceQuality "1"]
[TimeControl "5400+30"]

1. e4 e5 2. Nf3 Nc6 3. Bb5 d6 4. d4 Bd7 5. O-O Nf6 6. Re1 Be7 7. d5 Nb8 8. Bd3 O-O 9. c4 a5 10. Nc3 Na6 11. a3 b6 12. Rb1 Nc5 13. Bc2 a4 14. Be3 Qe8 15. h3 Ra5 16. g4 Qa8 17. Nd2 Ne8 18. f4 exf4 19. Bxf4 Bf6 20. Nf3 Bxc3 21. bxc3 f6 22. Nd4 Qd8 23. Qf3 g6 24. Re2 Ng7 25. h4 Qc8 26. Rg2 Qe8 27. h5 g5 28. h6 gxf4 29. hxg7 Rf7 30. Kf2 Rxg7 31. Rh1 Ra8 32. Rh5 Qe7 33. Qxf4 Rf8 34. Rg3 Rff7 35. Nf3 Rg6 36. Nh4 Rg5 37. Nf3 Kh8 38. Ke3 Rfg7 39. Nxg5 fxg5 40. Qf2 Be8 41. Rhh3 Bg6 42. Kd2 Nd7 43. Rf3 Ne5 44. Rf8+ Rg8 45. Qf6+ Qxf6 46. Rxf6 Kg7 47. Re6 Nxc4+ 48. Ke2 Rf8 49. Re7+ Rf7 50. Rxf7+ Kxf7 51. Bd3 Ne5 52. Rg3 Kg7 53. Ke3 Be8 54. Rg1 Bd7 55. Be2 h6 56. Kf2 Be8 57. Rb1 Bg6 58. Rb4 Be8 59. Ke3 Bd7 60. Kf2 Kf6 61. Kg3 Ke7 62. Rb1 Kf6 63. Rf1+ Kg7 64. Rb1 Kg6 65. Rb4 Kf6 66. Rb1 Bc8 67. Rh1 Kg7 68. Rb1 Bd7 69. Rb4 Kf6 70. Rb1 Kg7 1/2-1/2

[Event "Rodostosah GM 2019"]
[Site "Tekirdag"]
[Date "2019.02.13"]
[Round "5.5"]
[White "Ozenir, Ekin Baris"]
[Black "Bajarani, Ulvi"]
[Result "0-1"]
[ECO "D11"]
[WhiteElo "2262"]
[BlackElo "2420"]
[Annotator "ChessBase"]
[PlyCount "134"]
[EventDate "2019.02.08"]
[EventType "schev"]
[EventCountry "TUR"]
[SourceTitle "playchess.com"]
[Source "ChessBase"]
[SourceQuality "1"]
[TimeControl "5400+30"]

1. d4 d5 2. c4 c6 3. Nf3 Nf6 4. Nbd2 Bf5 5. g3 h6 6. Bg2 e6 7. O-O Nbd7 8. b3 Be7 9. Bb2 O-O 10. Ne5 Nxe5 11. dxe5 Nd7 12. cxd5 exd5 13. e4 dxe4 14. Nxe4 Nc5 15. Nd6 Bxd6 16. exd6 Nd3 17. Qf3 Bg6 18. Ba3 Qa5 19. Bc1 Rad8 20. Bf4 Rfe8 21. b4 Qa4 22. Rad1 Qc2 23. Bh3 Qe2 24. Qxe2 Rxe2 25. d7 Nxf4 26. gxf4 Kf8 27. a4 Bc2 28. Rd4 g6 29. b5 c5 30. Rd5 b6 31. a5 Ke7 32. axb6 axb6 33. Ra1 Bb3 34. Re5+ Rxe5 35. fxe5 Be6 36. Bg2 Bxd7 37. Ra7 Kf8 38. Bf1 Be6 39. Kg2 Rc8 40. Ra1 c4 41. f4 Rc5 42. Rb1 Bd7 43. Rc1 Bxb5 44. Kf2 Ba6 45. Ke3 b5 46. Kd4 Rc7 47. Kc3 Bc8 48. Rb1 Bd7 49. Ra1 Ke7 50. Ra8 g5 51. fxg5 hxg5 52. Rg8 b4+ 53. Kxb4 c3 54. Bd3 c2 55. Bxc2 Rxc2 56. Rxg5 Rxh2 57. Kc5 Ke6 58. Kd4 Rh4+ 59. Kd3 Bc6 60. Ke3 Re4+ 61. Kf2 Rxe5 62. Rg8 Kf5 63. Rc8 Bd5 64. Rb8 Kf4 65. Rb4+ Re4 66. Rb5 Rd4 67. Rb2 Ra4 0-1

[Event "Rodostosah GM 2019"]
[Site "Tekirdag"]
[Date "2019.02.13"]
[Round "6.2"]
[White "Stankovic, Milos"]
[Black "Kamer, Kayra"]
[Result "1-0"]
[ECO "B31"]
[WhiteElo "2453"]
[BlackElo "2419"]
[Annotator "ChessBase"]
[PlyCount "137"]
[EventDate "2019.02.08"]
[EventType "schev"]
[EventCountry "TUR"]
[SourceTitle "playchess.com"]
[Source "ChessBase"]
[SourceQuality "1"]
[TimeControl "5400+30"]

1. e4 c5 2. Nf3 Nc6 3. Bb5 g6 4. Bxc6 dxc6 5. d3 Bg7 6. h3 Nf6 7. O-O h6 8. Nc3 O-O 9. Be3 b6 10. a4 a5 11. Re1 Kh7 12. d4 cxd4 13. Qxd4 Nd5 14. e5 Nb4 15. Qxd8 Rxd8 16. Bxb6 Rd7 17. Rac1 Rb7 18. Bc5 Bf5 19. Nd4 Bxc2 20. Nxc2 Nd3 21. Ba3 Nxc1 22. Rxc1 Bxe5 23. Ne3 Bd6 24. Nc4 Bxa3 25. bxa3 Rb3 26. Ne4 Rab8 27. Rc2 Rb1+ 28. Kh2 Ra1 29. Nc5 Rbb1 30. Nxa5 h5 31. h4 Rh1+ 32. Kg3 Rxa3+ 33. f3 g5 34. hxg5 h4+ 35. Kf4 Rh2 36. Nc4 Ra1 37. Ne3 h3 38. Kg3 hxg2 39. Nxg2 Rhh1 40. Re2 Rhg1 41. Nd3 Rxa4 42. Rxe7 Kg6 43. Re5 f6 44. gxf6 Kxf6 45. Rc5 Ra6 46. Nf2 Ke7 47. Nh3 Rb1 48. Ne3 Rb5 49. Rc4 Rab6 50. Nf4 Kf7 51. Re4 Rg5+ 52. Ng4 Rb3 53. Ne6 Rg6 54. Nc5 Rc3 55. Nd7 Re6 56. Nde5+ Ke7 57. Rd4 Rd6 58. Ra4 Rd1 59. Kf4 Rd5 60. Re4 Kd6 61. Ne3 Rb5 62. Nf5+ Kc7 63. Nd4 Rb8 64. Ne6+ Kd6 65. Kf5 c5 66. f4 Rb1 67. Ra4 Rh3 68. Ng5 Rhh1 69. Ra7 1-0

[Event "Rodostosah GM 2019"]
[Site "Tekirdag"]
[Date "2019.02.13"]
[Round "6.3"]
[White "Lajthajm, Borko"]
[Black "Ozen, Deniz"]
[Result "1/2-1/2"]
[ECO "C07"]
[WhiteElo "2431"]
[BlackElo "2410"]
[Annotator "RC"]
[PlyCount "90"]
[EventDate "2019.02.08"]
[EventType "schev"]
[EventCountry "TUR"]
[SourceTitle "playchess.com"]
[Source "ChessBase"]
[SourceQuality "1"]
[TimeControl "5400+30"]

1. e4 e6 2. d4 d5 3. Nd2 c5 4. exd5 Qxd5 5. dxc5 Bxc5 6. Ngf3 Nf6 7. Bc4 Qc6 8. Qe2 O-O 9. O-O a6 10. Ne5 Qc7 11. Ndf3 b5 12. Bd3 Bb7 13. Bf4 Bd6 14. Rad1 Nc6 15. Bg3 Rad8 16. c3 Nxe5 17. Nxe5 Bd5 18. Bb1 Qb7 19. f3 Qc7 20. Rfe1 Nd7 21. f4 Nxe5 22. fxe5 Bc5+ 23. Bf2 Bb7 24. Rd3 Bxf2+ 25. Qxf2 Rxd3 26. Bxd3 Rd8 27. Bc2 Rd5 28. Qe3 g6 29. Re2 a5 30. Bb3 Rd8 31. a3 Bd5 32. Bxd5 Rxd5 33. h3 h5 34. Kf2 Qd8 35. Qf4 Rd1 36. Kg3 Rd5 37. Rf2 Qc7 38. Re2 Qd8 39. Rf2 Qc7 40. Re2 Rc5 41. Re4 Rd5 42. Qf6 Rd7 43. Rf4 Rd5 44. Re4 Rd7 45. Rf4 Rd5 1/2-1/2

[Event "Rodostosah GM 2019"]
[Site "Tekirdag"]
[Date "2019.02.13"]
[Round "6.5"]
[White "Annageldyev, Orazly"]
[Black "Ozenir, Ekin Baris"]
[Result "0-1"]
[ECO "A47"]
[WhiteElo "2377"]
[BlackElo "2262"]
[Annotator "NA"]
[PlyCount "94"]
[EventDate "2019.02.08"]
[EventType "schev"]
[EventCountry "TUR"]
[SourceTitle "playchess.com"]
[Source "ChessBase"]
[SourceQuality "1"]
[TimeControl "5400+30"]

1. d4 Nf6 2. Bf4 b6 3. e3 Bb7 4. Nf3 d6 {LiveBook: 18 Games} 5. Bc4 g6 6. a4 a6 7. Nc3 Bg7 8. h4 e6 9. Qe2 Qe7 10. e4 Nc6 11. e5 dxe5 12. dxe5 Nd7 13. h5 Qb4 14. h6 $1 Bxe5 $1 ({Of course not} 14... Qxb2 $6 15. hxg7 Qxc3+ 16. Qd2 $16) 15. Nxe5 Qxb2 16. O-O Qxc3 17. Nxd7 Kxd7 18. Rad1+ Kc8 19. a5 (19. Bg3 $1 $11) 19... Qxa5 20. Bxe6+ fxe6 21. Qxe6+ Kb8 22. Rd7 Rc8 23. Rxh7 Nd4 24. Qe3 Qd5 25. f3 Ne6 26. Be5 {[#]} Ka7 $17 27. Kh1 Qc5 28. Qe1 Re8 29. Qg3 Nf8 30. Bd4 Qxd4 31. Rxc7 Qe5 32. Qxe5 Rxe5 33. g4 Ne6 34. Re7 Rh8 35. h7 Rc5 36. Rxe6 Rxh7+ 37. Kg2 Rxc2+ 38. Kg3 g5 39. Rg6 Rc5 40. Rb1 b5 41. Rb3 Rf7 42. Kf2 a5 43. Ra3 b4 44. Rd3 Rb5 45. Re6 b3 46. Re1 b2 47. Rb1 Be4 0-1

[Event "Rodostosah GM 2019"]
[Site "Tekirdag"]
[Date "2019.02.14"]
[Round "7.3"]
[White "Ozen, Deniz"]
[Black "Bajarani, Ulvi"]
[Result "0-1"]
[ECO "C01"]
[WhiteElo "2410"]
[BlackElo "2420"]
[Annotator "RC"]
[PlyCount "100"]
[EventDate "2019.02.08"]
[EventType "schev"]
[EventCountry "TUR"]
[SourceTitle "playchess.com"]
[Source "ChessBase"]
[SourceQuality "1"]
[TimeControl "5400+30"]

1. e4 {[%emt 0:00:30]} e6 {[%emt 0:00:30]} 2. d4 {[%emt 0:00:30]} d5 {[%emt 0:00:30]} 3. exd5 {[%emt 0:00:30]} exd5 {[%emt 0:00:30]} 4. Nf3 {[%emt 0:00:30]} Bd6 {[%emt 0:00:30]} 5. c4 {[%emt 0:00:30]} Nf6 {[%emt 0:00:30]} 6. c5 {[%emt 0:00:30]} Be7 {[%emt 0:00:30]} 7. Bd3 {[%emt 0:00:30]} O-O {[%emt 0:00:30]} 8. O-O {[%emt 0:00:30]} b6 {[%emt 0:00:00]} 9. cxb6 {[%emt 0:00:30]} axb6 {[%emt 0:00:00]} 10. Nc3 {[%emt 0:00:30]} c6 {[%emt 0:08:30]} 11. h3 {[%emt 0:02:30]} Ba6 {[%emt 0:02:30]} 12. Re1 {[%emt 0:04:30]} Bxd3 {[%emt 0:01:30]} 13. Qxd3 {[%emt 0:00:00]} Nbd7 {[%emt 0:00:00]} 14. Bf4 {[%emt 0:03:00]} Re8 {[%emt 0:00:00]} 15. Rac1 {[%emt 0:09:30]} Rc8 {[%emt 0:03:30]} 16. Bh2 {[%emt 0:03:30]} Nf8 {[%emt 0:03:30]} 17. Qa6 {[%emt 0:03:30]} Ne6 {[%emt 0:02:30]} 18. Qb7 {[%emt 0:04:30]} Bb4 {[%emt 0:05:30]} 19. Red1 {[%emt 0:12:30]} Re7 {[%emt 0:10:30]} 20. Qa6 {[%emt 0:00:00]} Bxc3 {[%emt 0:00:30]} 21. Rxc3 {[%emt 0:00:00]} Ra8 {[%emt 0:00:30]} 22. Qd3 {[%emt 0:00:30]} c5 {[%emt 0:00:30]} 23. dxc5 {[%emt 0:06:30]} bxc5 {[%emt 0:00:30]} 24. a3 {[%emt 0:01:30]} Rb7 {[%emt 0:07:30]} 25. Rc2 {[%emt 0:01:30]} d4 {[%emt 0:00:30]} 26. Qc4 {[%emt 0:06:30]} Nd5 {[%emt 0:06:30]} 27. Bg3 {[%emt 0:07:30]} Nb6 {[%emt 0:03:30]} 28. Qb5 {[%emt 0:00:30]} Qd5 {[%emt 0:01:30]} 29. b4 {[%emt 0:18:07]} Na4 {[%emt 0:01:30]} 30. Qd3 {[%emt 0:01:40]} c4 {[%emt 0:02:30]} 31. Qxc4 {[%emt 0:01:41]} Qxc4 {[%emt 0:00:30]} 32. Rxc4 {[%emt 0:00:00]} Nb2 {[%emt 0:00:00]} 33. Rdxd4 {[%emt 0:00:00]} Nxd4 {[%emt 0:02:00]} 34. Rxd4 {[%emt 0:00:00]} f6 {[%emt 0:00:30]} 35. Nd2 {[%emt 0:01:02]} Rxa3 {[%emt 0:01:30]} 36. Nc4 {[%emt 0:02:34]} Rd3 {[%emt 0:00:30]} 37. Re4 {[%emt 0:01:10]} Rxb4 {[%emt 0:01:30]} 38. Re8+ {[%emt 0:00:45]} Kf7 {[%emt 0:00:30]} 39. Nd6+ {[%emt 0:00:02]} Kg6 {[%emt 0:00:00]} 40. Kh2 {[%emt 0:01:35]} Rbd4 {[%emt 0:01:00]} 41. Re6 {[%emt 0:01:22]} Na4 {[%emt 0:05:30]} 42. Nb5 {[%emt 0:01:30]} Rb4 {[%emt 0:00:30]} 43. Nc7 {[%emt 0:00:29]} Nc5 {[%emt 0:00:30]} 44. Re1 {[%emt 0:00:18]} Kf7 {[%emt 0:00:30]} 45. Ra1 {[%emt 0:02:12]} Ne4 {[%emt 0:01:30]} 46. f3 {[%emt 0:00:47]} Nxg3 {[%emt 0:02:30]} 47. Kxg3 {[%emt 0:00:01]} Rb2 {[%emt 0:00:00]} 48. Na6 {[%emt 0:00:40]} Rdd2 {[%emt 0:00:00]} 49. Rg1 {[%emt 0:00:01]} Rdc2 {[%emt 0:00:30]} 50. Kh2 {[%emt 0:00:06]} Rb6 {[%emt 0:00:30]} 0-1

[Event "Rodostosah GM 2019"]
[Site "Tekirdag"]
[Date "2019.02.15"]
[Round "8.1"]
[White "Lajthajm, Borko"]
[Black "Gokerkan, Cem Kaan"]
[Result "0-1"]
[ECO "E74"]
[WhiteElo "2431"]
[BlackElo "2423"]
[Annotator "NA"]
[PlyCount "104"]
[EventDate "2019.02.08"]
[EventType "schev"]
[EventCountry "TUR"]
[SourceTitle "playchess.com"]
[Source "ChessBase"]
[SourceQuality "1"]
[TimeControl "5400+30"]

1. d4 {[%emt 0:00:30]} Nf6 {[%emt 0:05:30]} 2. c4 {[%emt 0:00:30]} g6 {[%emt 0:00:00]} 3. Nc3 {[%emt 0:00:00]} Bg7 {[%emt 0:00:00]} 4. e4 {[%emt 0:00:00]} d6 {[%emt 0:00:00]} 5. Be2 {[%emt 0:00:00]} O-O {[%emt 0:01:00]} 6. Bg5 {[%emt 0:01:00]} c5 {[%emt 0:05:30]} 7. d5 {[%emt 0:01:30]} h6 {[%emt 0:05:30]} 8. Be3 {[%emt 0:01:30]} e6 {[%emt 0:01:30]} 9. Qd2 {[%emt 0:03:30]} exd5 {[%emt 0:00:30]} 10. exd5 {[%emt 0:00:00]} Kh7 {[%emt 0:02:30]} 11. h3 {[%emt 0:00:00]} Re8 {[%emt 0:00:30]} 12. Bd3 {[%emt 0:01:30]} b5 {[%emt 0:07:30]} 13. cxb5 {[%emt 0:01:30]} Nbd7 {[%emt 0:02:30]} 14. Rd1 {[%emt 0:07:30]} Ne5 {[%emt 0:13:30]} 15. Be2 {[%emt 0:00:30]} a6 {[%emt 0:00:30]} 16. Nf3 {[%emt 0:03:30]} Nxf3+ {[%emt 0:01:30]} 17. gxf3 {[%emt 0:00:30]} axb5 {[%emt 0:07:30]} 18. Bxb5 {[%emt 0:01:30]} Ba6 {[%emt 0:00:30]} 19. Bxe8 {[%emt 0:02:30]} Qxe8 {[%emt 0:00:30]} 20. Qc2 {[%emt 0:01:30]} Qe5 {[%emt 0:05:30]} 21. Rd2 {[%emt 0:00:30]} Re8 {[%emt 0:07:30]} 22. Qa4 {[%emt 0:01:30]} Bb7 {[%emt 0:01:30]} 23. f4 {[%emt 0:06:30]} Qf5 {[%emt 0:01:30]} 24. Kf1 {[%emt 0:08:30]} Nxd5 {[%emt 0:09:30]} 25. Nxd5 {[%emt 0:09:30]} Bxd5 {[%emt 0:00:30]} 26. Rxd5 {[%emt 0:00:30]} Qxd5 {[%emt 0:00:30]} 27. Qxe8 {[%emt 0:00:30]} Qxh1+ {[%emt 0:00:00]} 28. Ke2 {[%emt 0:00:00]} Qd5 {[%emt 0:01:47]} 29. a4 {[%emt 0:04:00]} Qc4+ {[%emt 0:03:17]} 30. Kf3 {[%emt 0:00:00]} d5 {[%emt 0:05:49]} 31. Qb5 {[%emt 0:04:00]} Qe4+ {[%emt 0:00:21]} 32. Kg3 {[%emt 0:00:00]} d4 {[%emt 0:01:57]} 33. Qc4 {[%emt 0:00:00]} Qh1 {[%emt 0:01:29]} 34. Qc1 {[%emt 0:07:30]} Qc6 {[%emt 0:00:34]} 35. Bd2 {[%emt 0:00:30]} Qxa4 {[%emt 0:00:59]} 36. Qxc5 {[%emt 0:00:30]} Qb3+ {[%emt 0:00:06]} 37. Kg2 {[%emt 0:00:30]} Qxb2 {[%emt 0:00:48]} 38. Ba5 {[%emt 0:03:30]} Qb7+ {[%emt 0:01:07]} 39. Kg3 {[%emt 0:00:30]} Qe4 {[%emt 0:03:20]} 40. Qc4 {[%emt 0:01:30]} f5 {[%emt 0:01:25]} 41. Bd2 {[%emt 0:00:30]} h5 {[%emt 0:01:45]} 42. Qc1 {[%emt 0:05:30]} h4+ {[%emt 0:01:08]} 43. Kh2 {[%emt 0:00:30]} Qf3 {[%emt 0:00:08]} 44. Qe1 {[%emt 0:00:00]} Bf8 {[%emt 0:00:36]} 45. Bc1 {[%emt 0:01:00]} Bd6 {[%emt 0:00:25]} 46. Qd2 {[%emt 0:06:30]} d3 {[%emt 0:00:20]} 47. Qa2 {[%emt 0:00:58]} Kh6 {[%emt 0:01:49]} 48. Qb2 {[%emt 0:00:20]} Bxf4+ {[%emt 0:00:36]} 49. Kg1 {[%emt 0:00:31]} Qd1+ {[%emt 0:00:17]} 50. Kg2 {[%emt 0:00:11]} Bxc1 {[%emt 0:00:59]} 51. Qh8+ {[%emt 0:00:30]} Kg5 {[%emt 0:00:07]} 52. Qd8+ {[%emt 0:00:30]} Kh5 {[%emt 0:00:00]} 0-1

[Event "Rodostosah GM 2019"]
[Site "Tekirdag"]
[Date "2019.02.15"]
[Round "8.2"]
[White "Bajarani, Ulvi"]
[Black "Kamer, Kayra"]
[Result "1/2-1/2"]
[ECO "E15"]
[WhiteElo "2420"]
[BlackElo "2419"]
[Annotator "NA"]
[PlyCount "124"]
[EventDate "2019.02.08"]
[EventType "schev"]
[EventCountry "TUR"]
[SourceTitle "playchess.com"]
[Source "ChessBase"]
[SourceQuality "1"]
[TimeControl "5400+30"]

1. d4 {[%emt 0:00:30]} Nf6 {[%emt 0:05:30]} 2. c4 {[%emt 0:00:00]} e6 {[%emt 0:01:30]} 3. Nf3 {[%emt 0:02:00]} b6 {[%emt 0:01:30]} 4. g3 {[%emt 0:00:30]} Ba6 {[%emt 0:01:30]} 5. Qa4 {[%emt 0:00:00]} c6 {[%emt 0:01:30]} 6. Nc3 {[%emt 0:01:00]} Be7 {[%emt 0:00:30]} 7. e4 {[%emt 0:00:30]} O-O {[%emt 0:06:30]} 8. e5 {[%emt 0:03:30]} Ne8 {[%emt 0:00:00]} 9. Be2 {[%emt 0:01:30]} d5 {[%emt 0:02:00]} 10. cxd5 {[%emt 0:01:30]} Bxe2 {[%emt 0:00:00]} 11. Kxe2 {[%emt 0:00:00]} exd5 {[%emt 0:01:00]} 12. Be3 {[%emt 0:02:00]} Nc7 {[%emt 0:00:30]} 13. Nd2 {[%emt 0:01:30]} f6 {[%emt 0:03:30]} 14. f4 {[%emt 0:02:30]} fxe5 {[%emt 0:01:30]} 15. fxe5 {[%emt 0:00:30]} Qe8 {[%emt 0:00:30]} 16. Raf1 {[%emt 0:01:30]} Qh5+ {[%emt 0:00:00]} 17. Ke1 {[%emt 0:00:30]} Rxf1+ {[%emt 0:00:00]} 18. Nxf1 {[%emt 0:02:30]} Ne6 {[%emt 0:03:30]} 19. Nd2 {[%emt 0:01:30]} b5 {[%emt 0:05:30]} 20. Qd1 {[%emt 0:03:30]} Qh3 {[%emt 0:00:30]} 21. Qe2 {[%emt 0:05:30]} Nd7 {[%emt 0:00:30]} 22. Nd1 {[%emt 0:01:30]} c5 {[%emt 0:16:30]} 23. Nf2 {[%emt 0:15:30]} Qf5 {[%emt 0:02:30]} 24. Qd3 {[%emt 0:00:30]} Qxd3 {[%emt 0:02:30]} 25. Nxd3 {[%emt 0:00:30]} cxd4 {[%emt 0:00:30]} 26. Bf2 {[%emt 0:00:00]} Nec5 {[%emt 0:06:30]} 27. Nxc5 {[%emt 0:01:00]} Bxc5 {[%emt 0:00:30]} 28. Nb3 {[%emt 0:02:30]} Bb4+ {[%emt 0:00:00]} 29. Ke2 {[%emt 0:00:30]} Nxe5 {[%emt 0:02:00]} 30. Bxd4 {[%emt 0:00:30]} Nc4 {[%emt 0:00:30]} 31. Nc1 {[%emt 0:02:30]} a5 {[%emt 0:03:30]} 32. b3 {[%emt 0:01:30]} Nd6 {[%emt 0:00:30]} 33. Nd3 {[%emt 0:00:30]} Re8+ {[%emt 0:00:00]} 34. Kf3 {[%emt 0:01:30]} Rf8+ {[%emt 0:02:00]} 35. Ke2 {[%emt 0:00:30]} Nf5 {[%emt 0:01:30]} 36. Be5 {[%emt 0:02:30]} Re8 {[%emt 0:03:30]} 37. Kf3 {[%emt 0:01:30]} Bd6 {[%emt 0:00:30]} 38. Bxd6 {[%emt 0:02:30]} Nxd6 {[%emt 0:00:00]} 39. Nf4 {[%emt 0:04:30]} d4 {[%emt 0:00:00]} 40. Rd1 {[%emt 0:00:30]} Re4 {[%emt 0:03:30]} 41. h4 {[%emt 0:05:30]} Re3+ {[%emt 0:04:30]} 42. Kg4 {[%emt 0:00:00]} g6 {[%emt 0:05:54]} 43. Nd5 {[%emt 0:06:00]} Nf5 {[%emt 0:00:29]} 44. Kf4 {[%emt 0:00:30]} Re2 {[%emt 0:01:21]} 45. Nf6+ {[%emt 0:02:30]} Kg7 {[%emt 0:00:41]} 46. Ne4 {[%emt 0:00:30]} Rxa2 {[%emt 0:02:27]} 47. g4 {[%emt 0:00:00]} Nxh4 {[%emt 0:00:45]} 48. Rxd4 {[%emt 0:00:00]} g5+ {[%emt 0:05:48]} 49. Nxg5 {[%emt 0:00:30]} Ng6+ {[%emt 0:00:00]} 50. Kg3 {[%emt 0:03:30]} Ra3 {[%emt 0:00:18]} 51. Rd7+ {[%emt 0:01:30]} Kf6 {[%emt 0:00:07]} 52. Ne4+ {[%emt 0:00:30]} Ke5 {[%emt 0:00:11]} 53. Nc5 {[%emt 0:00:30]} a4 {[%emt 0:00:35]} 54. Rd3 {[%emt 0:00:30]} axb3 {[%emt 0:02:21]} 55. Nxb3 {[%emt 0:00:00]} b4 {[%emt 0:01:20]} 56. Kf3 {[%emt 0:00:00]} Ne7 {[%emt 0:00:19]} 57. Re3+ {[%emt 0:01:30]} Kd6 {[%emt 0:00:01]} 58. Ke4 {[%emt 0:00:30]} Nc6 {[%emt 0:01:00]} 59. Rh3 {[%emt 0:00:30]} Ne5 {[%emt 0:01:55]} 60. Rh6+ {[%emt 0:01:30]} Ng6 {[%emt 0:00:01]} 61. Nd4 {[%emt 0:00:00]} Ra5 {[%emt 0:01:37]} 62. Rxh7 {[%emt 0:00:00]} Re5+ {[%emt 0:00:28]} 1/2-1/2

[Event "Rodostosah GM 2019"]
[Site "Tekirdag"]
[Date "2019.02.15"]
[Round "8.3"]
[White "Annageldyev, Orazly"]
[Black "Ozen, Deniz"]
[Result "1/2-1/2"]
[ECO "C07"]
[WhiteElo "2377"]
[BlackElo "2410"]
[Annotator "NA"]
[PlyCount "114"]
[EventDate "2019.02.08"]
[EventType "schev"]
[EventCountry "TUR"]
[SourceTitle "playchess.com"]
[Source "ChessBase"]
[SourceQuality "1"]
[TimeControl "5400+30"]

1. e4 {[%emt 0:00:30]} e6 {[%emt 0:05:30]} 2. d4 {[%emt 0:00:30]} d5 {[%emt 0:00:30]} 3. Nd2 {[%emt 0:00:30]} c5 {[%emt 0:00:30]} 4. exd5 {[%emt 0:00:00]} Qxd5 {[%emt 0:00:00]} 5. dxc5 {[%emt 0:00:00]} Bxc5 {[%emt 0:00:00]} 6. Ngf3 {[%emt 0:00:30]} Nf6 {[%emt 0:00:00]} 7. Bc4 {[%emt 0:00:00]} Qc6 {[%emt 0:00:00]} 8. O-O {[%emt 0:00:00]} O-O {[%emt 0:00:30]} 9. Qe2 {[%emt 0:00:00]} a6 {[%emt 0:01:30]} 10. Rd1 {[%emt 0:03:00]} b5 {[%emt 0:02:30]} 11. Bd3 {[%emt 0:00:30]} Bb7 {[%emt 0:01:30]} 12. a4 {[%emt 0:01:30]} bxa4 {[%emt 0:03:30]} 13. Nc4 {[%emt 0:04:30]} Qc7 {[%emt 0:06:30]} 14. Nfe5 {[%emt 0:12:30]} Nc6 {[%emt 0:05:30]} 15. h3 {[%emt 0:17:30]} Nxe5 {[%emt 0:02:30]} 16. Nxe5 {[%emt 0:00:30]} a3 {[%emt 0:00:30]} 17. bxa3 {[%emt 0:06:30]} Bd4 {[%emt 0:04:30]} 18. Bf4 {[%emt 0:19:30]} Bxa1 {[%emt 0:00:30]} 19. Rxa1 {[%emt 0:00:30]} Rfe8 {[%emt 0:14:30]} 20. Bg3 {[%emt 0:03:30]} Qc5 {[%emt 0:09:30]} 21. c4 {[%emt 0:07:30]} Rad8 {[%emt 0:07:30]} 22. Rb1 {[%emt 0:00:30]} Ba8 {[%emt 0:00:30]} 23. Bh4 {[%emt 0:02:00]} Qd4 {[%emt 0:02:30]} 24. g3 {[%emt 0:05:24]} Rb8 {[%emt 0:03:30]} 25. Rd1 {[%emt 0:00:21]} Rb2 {[%emt 0:01:30]} 26. Qe1 {[%emt 0:03:14]} Ne4 {[%emt 0:01:30]} 27. Ng4 {[%emt 0:01:00]} f5 {[%emt 0:01:30]} 28. Bxe4 {[%emt 0:04:05]} Qxe4 {[%emt 0:00:00]} 29. Qxe4 {[%emt 0:00:12]} Bxe4 {[%emt 0:00:00]} 30. Ne5 {[%emt 0:00:00]} h6 {[%emt 0:02:30]} 31. Bd8 {[%emt 0:00:31]} Rb1 {[%emt 0:02:30]} 32. Rxb1 {[%emt 0:00:33]} Bxb1 {[%emt 0:00:00]} 33. Bb6 {[%emt 0:00:11]} Rc8 {[%emt 0:02:00]} 34. c5 {[%emt 0:00:07]} Be4 {[%emt 0:00:00]} 35. f4 {[%emt 0:00:13]} g5 {[%emt 0:01:00]} 36. Kf2 {[%emt 0:00:09]} gxf4 {[%emt 0:00:00]} 37. gxf4 {[%emt 0:00:07]} Kf8 {[%emt 0:01:00]} 38. Ke3 {[%emt 0:03:40]} Ke7 {[%emt 0:00:00]} 39. Kd4 {[%emt 0:00:54]} Rg8 {[%emt 0:02:00]} 40. c6 {[%emt 0:00:18]} Kd6 {[%emt 0:01:36]} 41. c7 {[%emt 0:00:10]} Bb7 {[%emt 0:00:00]} 42. a4 {[%emt 0:00:20]} Rg3 {[%emt 0:02:03]} 43. h4 {[%emt 0:02:31]} Rh3 {[%emt 0:01:28]} 44. Nf7+ {[%emt 0:01:21]} Kc6 {[%emt 0:01:06]} 45. a5 {[%emt 0:00:09]} Bc8 {[%emt 0:00:00]} 46. Ke5 {[%emt 0:01:00]} Rxh4 {[%emt 0:01:19]} 47. Nd8+ {[%emt 0:00:07]} Kd7 {[%emt 0:00:41]} 48. Nxe6 {[%emt 0:00:11]} Rh1 {[%emt 0:01:12]} 49. Nd4 {[%emt 0:00:13]} h5 {[%emt 0:00:18]} 50. Kxf5 {[%emt 0:02:03]} h4 {[%emt 0:05:03]} 51. Kg4 {[%emt 0:00:12]} h3 {[%emt 0:00:23]} 52. Kg3 {[%emt 0:00:46]} Kd6 {[%emt 0:00:24]} 53. f5 {[%emt 0:00:28]} Ke5 {[%emt 0:01:34]} 54. Nc6+ {[%emt 0:00:24]} Kf6 {[%emt 0:00:24]} 55. Na7 {[%emt 0:00:18]} Bxf5 {[%emt 0:00:08]} 56. c8=Q {[%emt 0:00:42]} Bxc8 {[%emt 0:00:02]} 57. Nxc8 {[%emt 0:00:14]} h2 {[%emt 0:00:07]} 1/2-1/2